bitfinex-derivatives/quotes_BTCF0:USTF0_20241227
["timestamp","ask_amount","ask_price","bid_price","bid_amount"]
[1735322404980,0.053063,94355.0,94350.0,0.053065]
[1735322405185,0.0679,94359.0,94347.0,0.005]
[1735322405373,0.053064,94354.0,94351.0,0.053065]
[1735322405575,0.10831456,94360.0,94348.0,0.0339]
[1735322405770,0.10831456,94360.0,94353.0,0.053063]
[1735322405771,0.053062,94357.0,94353.0,0.053063]
[1735322405976,0.10831456,94360.0,94348.0,0.0339]
[1735322406169,0.053066,94349.0,94347.0,0.003]
[1735322406373,0.053065,94352.0,94347.0,0.056067]
[1735322406681,0.053067,94348.0,94347.0,0.003]
[1735322407193,0.053067,94348.0,94347.0,0.001]
[1735322407482,0.053067,94348.0,94346.0,0.3608]
[1735322407682,0.12106924,94360.0,94349.0,0.053066]
[1735322407683,0.053063,94355.0,94349.0,0.053066]
[1735322407885,0.053063,94355.0,94350.0,0.053065]
[1735322408077,0.12106924,94360.0,94354.0,0.3608]
[1735322408277,0.01275468,94360.0,94358.0,0.053061]
[1735322408477,0.053062,94356.0,94354.0,0.3608]
[1735322408978,0.053067,94348.0,94347.0,0.001]
[1735322409168,0.053067,94348.0,94335.0,0.3608]
[1735322409374,0.053073,94336.0,94335.0,0.3608]
[1735322409568,0.053082,94320.0,94318.0,0.3608]
[1735322409877,0.10831456,94340.0,94326.0,0.053078]
[1735322410081,0.16138756,94336.0,94335.0,0.3608]
[1735322410383,0.053073,94336.0,94335.0,0.3608]
[1735322410885,0.053073,94336.0,94335.0,0.3668]
[1735322411976,0.053073,94336.0,94335.0,0.3688]
[1735322412882,0.053073,94336.0,94335.0,0.002]
[1735322413078,0.413873,94336.0,94335.0,0.008]
[1735322413380,0.053073,94336.0,94335.0,0.008]
[1735322415484,0.06551477,94336.0,94335.0,0.008]
[1735322416078,0.06551477,94336.0,94335.0,1.508]
[1735322417089,0.06551477,94336.0,94335.0,1.8688]
[1735322417492,0.06551477,94336.0,94335.0,0.3688]
[1735322418181,0.01244177,94336.0,94329.0,0.053077]
[1735322418386,0.053075,94334.0,94329.0,0.053077]
[1735322419396,0.053075,94333.0,94329.0,0.053077]
[1735322420086,0.053075,94333.0,94329.0,0.011]
[1735322420390,0.053067,94348.0,94340.0,0.05307]
[1735322420597,0.01227351,94348.0,94340.0,0.05307]
[1735322420985,0.0719,94359.0,94340.0,0.05307]
[1735322421589,0.0719,94359.0,94340.0,0.05407]
[1735322421797,0.0719,94359.0,94340.0,0.05607]
[1735322421995,0.053068,94342.0,94340.0,0.003]
[1735322423294,0.053065,94341.0,94340.0,0.004]
[1735322424293,0.053061,94348.0,94340.0,0.3618]
[1735322424488,0.053061,94348.0,94340.0,0.417866]
[1735322424690,0.053064,94344.0,94340.0,0.417866]
[1735322424890,0.053065,94341.0,94340.0,0.3648]
[1735322426091,0.3608,94345.0,94340.0,0.001]
[1735322426303,0.3608,94345.0,94340.0,0.004]
[1735322426595,0.053062,94347.0,94340.0,0.004]
[1735322426796,0.053064,94344.0,94340.0,0.004]
[1735322427683,0.053064,94344.0,94340.0,0.003]
[1735322427890,0.053064,94343.0,94340.0,0.004]
[1735322428489,0.12117957,94350.0,94340.0,0.004]
[1735322428693,0.053065,94342.0,94340.0,0.004]
[1735322428987,0.01286501,94350.0,94340.0,0.004]
[1735322429299,0.0719,94359.0,94349.0,0.3608]
[1735322429300,0.053057,94355.0,94349.0,0.3608]
[1735322429889,0.0124884,94359.0,94349.0,0.3608]
[1735322430089,0.00159029,94369.0,94358.0,0.3608]
[1735322430291,0.053051,94367.0,94358.0,0.3608]
[1735322430486,0.053051,94367.0,94358.0,0.413855]
[1735322430696,0.053051,94367.0,94366.0,0.3608]
[1735322430900,0.01389909,94369.0,94366.0,0.413851]
[1735322431592,0.05305,94368.0,94366.0,0.3608]
[1735322432896,0.004,94367.0,94366.0,0.3608]
[1735322433299,0.05905,94368.0,94366.0,0.3608]
[1735322433991,0.002,94367.0,94366.0,0.3608]
[1735322435602,0.05905,94368.0,94366.0,0.3608]
[1735322435803,0.004,94367.0,94366.0,0.3608]
[1735322436505,0.006,94367.0,94366.0,0.3608]
[1735322436706,0.002,94367.0,94366.0,0.3608]
[1735322437408,0.006,94367.0,94366.0,0.3608]
[1735322441112,0.006,94367.0,94366.0,0.3965]
[1735322441527,0.1036,94395.0,94375.0,0.053046]
[1735322441528,0.00158978,94391.0,94375.0,0.053046]
[1735322441811,0.053042,94382.0,94375.0,0.413846]
[1735322442002,0.10831456,94390.0,94375.0,0.413846]
[1735322442196,0.053045,94377.0,94375.0,0.3608]
[1735322443199,0.1042,94376.0,94375.0,0.3608]
[1735322445403,0.1072,94376.0,94375.0,0.3608]
[1735322445805,0.053048,94371.0,94370.0,0.3608]
[1735322448106,0.057048,94371.0,94370.0,0.3608]
[1735322448505,0.055048,94371.0,94370.0,0.3608]
[1735322448708,0.057048,94371.0,94370.0,0.3608]
[1735322449209,0.055048,94371.0,94370.0,0.3608]
[1735322449399,0.057048,94371.0,94370.0,0.3608]
[1735322451313,0.055048,94371.0,94370.0,0.3608]
[1735322451513,0.057048,94371.0,94370.0,0.3608]
[1735322451904,0.055048,94371.0,94370.0,0.3608]
[1735322452104,0.057048,94371.0,94370.0,0.3608]
[1735322454917,0.004,94371.0,94370.0,0.3608]
[1735322456003,0.002,94371.0,94370.0,0.3608]
[1735322456208,0.3608,94405.0,94370.0,0.3608]
[1735322456209,0.053039,94393.0,94370.0,0.7298]
[1735322456405,0.20831456,94400.0,94390.0,0.77464]
[1735322456605,0.1,94400.0,94398.0,0.053035]
[1735322456810,0.1,94400.0,94399.0,0.3608]
[1735322457415,0.16467755,94400.0,94399.0,0.3608]
[1735322458520,0.17067755,94400.0,94399.0,0.3618]
[1735322458722,0.17067755,94400.0,94399.0,0.3628]
[1735322459419,0.11764255,94400.0,94399.0,0.415835]
[1735322461018,0.11164255,94400.0,94399.0,0.414835]
[1735322461208,0.11664255,94400.0,94399.0,0.414835]
[1735322462517,0.11164255,94400.0,94399.0,0.414835]
[1735322462813,0.11464255,94400.0,94399.0,0.413835]
[1735322464125,0.11164255,94400.0,94399.0,0.413835]
[1735322464313,0.11464255,94400.0,94399.0,0.413835]
[1735322466429,0.11464255,94400.0,94399.0,0.42589071]
[1735322467722,0.06004255,94400.0,94399.0,0.72589071]
[1735322467921,0.10831456,94430.0,94417.0,0.053025]
[1735322468119,0.10831456,94430.0,94429.0,0.3608]
[1735322468318,0.053018,94430.0,94429.0,0.3608]
[1735322469022,0.092218,94430.0,94429.0,0.3608]
[1735322470022,0.0392,94430.0,94420.0,0.3608]
[1735322470216,0.0392,94430.0,94417.0,0.001]
[1735322470217,0.14751456,94430.0,94417.0,0.001]
[1735322470423,0.053025,94418.0,94417.0,0.001]
[1735322471131,0.0328,94420.0,94410.0,0.3608]
[1735322471322,0.0328,94420.0,94410.0,0.413829]
[1735322471523,0.14111456,94420.0,94410.0,0.413829]
[1735322472229,0.14111456,94420.0,94410.0,0.414829]
[1735322472814,0.15326692,94420.0,94418.0,0.3608]
[1735322473020,0.01215236,94420.0,94418.0,0.3608]
[1735322473324,0.10831456,94428.0,94418.0,0.3608]
[1735322473728,0.0696,94427.0,94418.0,0.3608]
[1735322474121,0.003,94420.0,94418.0,0.3608]
[1735322474340,0.003,94420.0,94419.0,0.053024]
[1735322474720,0.10831456,94430.0,94421.0,0.053023]
[1735322474920,0.10831456,94430.0,94429.0,0.3608]
[1735322475117,0.053014,94437.0,94429.0,0.3608]
[1735322476225,0.01184669,94439.0,94418.0,0.3618]
[1735322476430,0.21662912,94440.0,94418.0,0.3618]
[1735322476431,0.10831456,94428.0,94418.0,0.3608]
[1735322476725,0.0364,94427.0,94426.0,0.3608]
[1735322479025,0.053017,94433.0,94426.0,0.3608]
[1735322479228,0.10831456,94440.0,94426.0,0.3608]
[1735322479428,0.26964112,94440.0,94426.0,0.3608]
[1735322479624,0.16132656,94440.0,94426.0,0.3608]
[1735322479832,0.053013,94438.0,94426.0,0.3608]
[1735322480026,0.12018496,94440.0,94426.0,0.3608]
[1735322480332,0.053013,94439.0,94426.0,0.3608]
[1735322480829,0.12018496,94440.0,94426.0,0.41382]
[1735322481031,0.0118704,94440.0,94426.0,0.3608]
[1735322481221,0.10831456,94440.0,94432.0,0.053016]
[1735322483133,0.10831456,94440.0,94434.0,0.3608]
[1735322483337,0.10931456,94440.0,94434.0,0.3608]
[1735322484037,0.10831456,94440.0,94434.0,0.3608]
[1735322484231,0.10931456,94440.0,94434.0,0.3608]
[1735322487139,0.001,94440.0,94434.0,0.3608]
[1735322488136,0.053017,94435.0,94434.0,0.3608]
[1735322488845,0.053017,94435.0,94434.0,0.2524]
[1735322490245,0.054017,94435.0,94434.0,0.2524]
[1735322490547,0.001,94435.0,94413.0,0.00158862]
[1735322490745,0.10831456,94423.0,94413.0,0.00158862]
[1735322491043,0.3956,94422.0,94413.0,0.00158862]
[1735322491240,0.3608,94420.0,94413.0,0.00158862]
[1735322491440,0.0348,94422.0,94413.0,0.00158862]
[1735322491833,0.0348,94422.0,94413.0,0.00358862]
[1735322492045,0.053027,94418.0,94413.0,0.00358862]
[1735322492646,0.053028,94415.0,94413.0,0.00358862]
[1735322492839,0.053028,94415.0,94413.0,0.002]
[1735322493543,0.01182016,94418.0,94405.0,0.3608]
[1735322493744,0.053029,94414.0,94413.0,0.007]
[1735322494244,0.053029,94414.0,94413.0,0.002]
[1735322494547,0.05303,94412.0,94405.0,0.3608]
[1735322495550,0.053031,94409.0,94405.0,0.3608]
[1735322496140,0.10831456,94415.0,94405.0,0.3608]
[1735322496141,0.053032,94408.0,94405.0,0.3608]
[1735322496343,0.053033,94407.0,94405.0,0.3608]
[1735322496951,0.053033,94407.0,94405.0,0.3638]
[1735322497352,0.053029,94414.0,94406.0,0.0348]
[1735322498152,0.053029,94414.0,94413.0,0.3608]
[1735322499457,0.04651347,94422.0,94413.0,0.3608]
[1735322499458,0.01171347,94422.0,94413.0,0.3608]
[1735322499660,0.00158923,94428.0,94421.0,0.3608]
[1735322500347,0.00158923,94428.0,94414.0,0.3608]
[1735322500547,0.00158923,94428.0,94409.0,0.19031497]
[1735322500548,0.053031,94411.0,94409.0,0.19031497]
[1735322500951,0.3608,94423.0,94406.0,0.22511497]
[1735322500952,0.036,94422.0,94406.0,0.22511497]
[1735322501148,0.053032,94408.0,94406.0,0.22511497]
[1735322501346,0.053032,94408.0,94406.0,0.19031497]
[1735322501750,0.395,94407.0,94406.0,0.19031497]
[1735322501949,0.36172,94415.0,94402.0,0.3608]
[1735322502158,0.053026,94419.0,94410.0,0.053031]
[1735322502460,0.053021,94427.0,94416.0,0.053027]
[1735322502645,0.053021,94427.0,94411.0,0.3954]
[1735322502646,0.053021,94427.0,94417.0,0.053026]
[1735322502847,0.053021,94427.0,94419.0,0.3608]
[1735322503441,0.01628221,94428.0,94422.0,0.053024]
[1735322503747,0.06930321,94428.0,94419.0,0.3608]
[1735322504055,0.06930321,94428.0,94427.0,0.3608]
[1735322504851,0.01628221,94428.0,94427.0,0.3608]
[1735322505252,0.00158923,94428.0,94427.0,0.3608]
[1735322510451,0.00158923,94428.0,94416.0,0.3608]
[1735322510965,0.00158923,94428.0,94408.0,0.413832]
[1735322510966,0.053027,94417.0,94408.0,0.413832]
[1735322511461,0.053027,94417.0,94408.0,0.3608]
[1735322511655,0.053027,94417.0,94410.0,0.053031]
[1735322512457,0.053023,94425.0,94410.0,0.053031]
[1735322512658,0.10831456,94426.0,94410.0,0.053031]
[1735322512850,0.053023,94425.0,94410.0,0.053031]
[1735322513053,0.053028,94417.0,94410.0,0.059031]
[1735322513249,0.10831456,94426.0,94410.0,0.059031]
[1735322513457,0.053029,94416.0,94410.0,0.059031]
[1735322513959,0.053029,94416.0,94410.0,0.053031]
[1735322514149,0.053029,94416.0,94410.0,0.059031]
[1735322514350,0.053029,94416.0,94411.0,0.053031]
[1735322515060,0.10831456,94426.0,94418.0,0.053027]
[1735322515256,0.12349886,94426.0,94418.0,0.053027]
[1735322515655,0.12349886,94426.0,94419.0,1.5]
[1735322515958,0.053028,94416.0,94414.0,0.3608]
[1735322516746,0.3608,94423.0,94391.0,0.3966]
[1735322516951,0.053035,94404.0,94391.0,0.3966]
[1735322517357,0.053035,94404.0,94394.0,0.05304]
[1735322518355,0.053035,94404.0,94395.0,0.05304]
[1735322518858,0.053036,94402.0,94395.0,0.05304]
[1735322519159,0.053036,94402.0,94401.0,0.3608]
[1735322520258,0.0681462,94402.0,94401.0,0.3608]
[1735322520468,0.053039,94397.0,94395.0,0.008]
[1735322520660,0.053039,94397.0,94391.0,0.413842]
[1735322521054,0.0151102,94402.0,94393.0,0.3608]
[1735322521255,0.053042,94392.0,94384.0,0.053046]
[1735322521460,0.053042,94392.0,94391.0,0.3608]
[1735322522172,0.053042,94392.0,94391.0,0.3698]
[1735322522669,0.053038,94399.0,94391.0,0.3608]
[1735322522850,0.10831456,94400.0,94391.0,0.3668]
[1735322523364,0.053042,94392.0,94391.0,0.006]
[1735322523558,0.053044,94387.0,94386.0,0.00558923]
[1735322524066,0.053044,94387.0,94386.0,0.00158923]
[1735322524360,0.0338,94391.0,94366.0,0.19031497]
[1735322524566,0.3608,94375.0,94366.0,0.19031497]
[1735322524770,0.053053,94373.0,94366.0,0.19031497]
[1735322525352,0.0328,94374.0,94354.0,0.42850955]
[1735322525558,0.0328,94374.0,94354.0,0.3608]
[1735322525755,0.10831456,94369.0,94354.0,0.3608]
[1735322525956,0.10831456,94369.0,94360.0,0.05306]
[1735322526257,0.10831456,94369.0,94366.0,0.006]
[1735322526463,0.06823657,94374.0,94366.0,0.006]
[1735322526663,0.3608,94375.0,94373.0,0.053052]
[1735322527161,0.01456355,94378.0,94366.0,0.01491186]
[1735322527352,0.10831456,94390.0,94375.0,0.3608]
[1735322527558,0.10831456,94390.0,94376.0,0.0345]
[1735322527766,0.10831456,94390.0,94387.0,0.053044]
[1735322527964,0.053042,94392.0,94377.0,1.5]
[1735322528262,0.10831456,94387.0,94377.0,1.5]
[1735322528456,0.10831456,94387.0,94373.0,0.001]
[1735322528662,0.10831456,94387.0,94379.0,0.053049]
[1735322529459,0.10931456,94387.0,94379.0,0.053049]
[1735322529664,0.053046,94384.0,94379.0,0.053049]
[1735322529961,0.10831456,94387.0,94366.0,1.5]
[1735322530170,0.10831456,94387.0,94380.0,0.053048]
[1735322530364,0.10831456,94387.0,94366.0,1.5]
[1735322530552,0.10831456,94387.0,94380.0,0.053048]
[1735322530752,0.10831456,94387.0,94382.0,0.053047]
[1735322530957,0.10831456,94387.0,94379.0,0.002]
[1735322530958,0.053046,94385.0,94379.0,0.002]
[1735322531161,0.053047,94382.0,94379.0,0.002]
[1735322531371,0.053047,94382.0,94379.0,0.001]
[1735322532469,0.053047,94382.0,94376.0,0.05305]
[1735322533068,0.053047,94382.0,94379.0,0.001]
[1735322533664,0.0686,94389.0,94376.0,0.002]
[1735322533877,0.05018266,94389.0,94384.0,0.053046]
[1735322534667,0.053044,94387.0,94379.0,0.001]
[1735322534967,0.053048,94380.0,94379.0,0.001]
[1735322536572,0.053058,94364.0,94361.0,0.3608]
[1735322536767,0.053057,94365.0,94361.0,0.3608]
[1735322537675,0.053057,94365.0,94361.0,0.3638]
[1735322538170,0.47011456,94371.0,94361.0,0.3638]
[1735322538369,0.3608,94371.0,94361.0,0.3638]
[1735322538974,0.053054,94370.0,94361.0,0.3638]
[1735322539476,0.053054,94370.0,94361.0,0.3698]
[1735322539964,0.053054,94370.0,94361.0,0.3668]
[1735322540165,0.053054,94370.0,94361.0,0.3698]
[1735322540360,0.086254,94370.0,94361.0,0.3698]
[1735322540665,0.053056,94367.0,94361.0,0.3698]
[1735322541059,0.053058,94362.0,94361.0,0.3698]
[1735322542169,0.053058,94362.0,94361.0,0.3638]
[1735322542377,0.053058,94362.0,94361.0,0.009]
[1735322542979,0.053058,94362.0,94361.0,0.007]
[1735322543276,0.053058,94362.0,94361.0,0.004]
[1735322543478,0.413858,94362.0,94361.0,0.006]
[1735322544772,0.3608,94370.0,94364.0,0.053052]
[1735322545180,0.3608,94370.0,94363.0,0.3608]
[1735322545481,0.00092,94380.0,94365.0,1.5]
[1735322545680,0.10831456,94380.0,94365.0,1.5]
[1735322545881,0.053041,94384.0,94365.0,1.5]
[1735322546782,0.10831456,94380.0,94373.0,0.053047]
[1735322547284,0.10831456,94380.0,94371.0,0.3608]
[1735322547285,0.053049,94369.0,94365.0,0.00156]
[1735322547479,0.053049,94369.0,94365.0,0.001]
[1735322547983,0.10831456,94375.0,94365.0,0.3618]
[1735322548178,0.3608,94371.0,94365.0,0.003]
[1735322548385,0.053051,94367.0,94365.0,0.003]
[1735322548572,0.053051,94367.0,94365.0,0.002]
[1735322548769,0.053054,94360.0,94359.0,0.19031497]
[1735322548985,0.05305,94368.0,94354.0,0.36294978]
[1735322549173,0.053056,94358.0,94354.0,0.36238978]
[1735322549877,0.053057,94356.0,94354.0,0.36238978]
[1735322550268,0.053057,94356.0,94354.0,0.36538978]
[1735322551183,0.053057,94356.0,94354.0,0.00458978]
[1735322551984,0.053057,94356.0,94354.0,0.01158978]
[1735322552583,0.053057,94356.0,94354.0,0.00458978]
[1735322552788,0.054057,94356.0,94354.0,0.01158978]
[1735322553388,0.10598272,94355.0,94354.0,0.01158978]
[1735322553690,0.10598272,94355.0,94354.0,0.01]
[1735322554778,0.10698272,94355.0,94354.0,0.01]
[1735322555894,0.10698272,94355.0,94333.0,0.0344]
[1735322556089,0.053064,94343.0,94333.0,0.0344]
[1735322557991,0.054064,94343.0,94342.0,0.3698]
[1735322558189,0.054064,94343.0,94342.0,0.3748]
[1735322560185,0.06840389,94343.0,94342.0,0.3748]
[1735322561297,0.06840389,94343.0,94342.0,0.014]
[1735322562485,0.17440065,94343.0,94342.0,0.009]
[1735322562681,0.053074,94325.0,94324.0,0.3608]
[1735322564298,0.053074,94325.0,94324.0,0.3658]
[1735322564595,0.054074,94325.0,94324.0,0.3708]
[1735322567088,0.054074,94325.0,94324.0,0.01]
[1735322567397,0.06792254,94325.0,94324.0,0.01]
[1735322568997,0.06792254,94325.0,94304.0,0.0334]
[1735322568998,0.053085,94305.0,94304.0,0.0334]
[1735322570596,0.054085,94305.0,94304.0,0.0344]
[1735322570898,0.055085,94305.0,94304.0,0.0424]
[1735322572100,0.054085,94305.0,94304.0,0.001]
[1735322572310,0.048087,94301.0,94300.0,0.4608]
[1735322574393,0.049087,94301.0,94300.0,0.4618]
[1735322578709,0.050087,94301.0,94300.0,0.4668]
[1735322580108,0.050087,94301.0,94300.0,0.4618]
[1735322581409,0.050087,94301.0,94300.0,0.4608]
[1735322584104,0.002,94301.0,94300.0,0.4608]
[1735322584313,0.053079,94317.0,94300.0,1.1216]
[1735322584607,0.00159119,94320.0,94311.0,0.3608]
[1735322584804,0.00159119,94320.0,94312.0,0.0323]
[1735322585603,0.001,94317.0,94312.0,0.0323]
[1735322586116,0.002,94317.0,94312.0,0.0323]
[1735322586306,0.001,94317.0,94312.0,0.0323]
[1735322586497,0.001,94317.0,94312.0,0.0343]
[1735322587112,0.001,94317.0,94312.0,0.087381]
[1735322587616,0.00159119,94320.0,94312.0,0.087381]
[1735322587811,0.3608,94347.0,94319.0,0.3608]
[1735322588112,0.053068,94336.0,94326.0,0.053073]
[1735322588299,0.10831456,94350.0,94335.0,0.3608]
[1735322588614,0.053063,94345.0,94335.0,0.3608]
[1735322588816,0.053064,94343.0,94335.0,0.3608]
[1735322589313,0.053065,94342.0,94335.0,0.3608]
[1735322589515,0.053065,94342.0,94335.0,0.3628]
[1735322590611,0.3608,94348.0,94335.0,0.3628]
[1735322590915,0.053065,94342.0,94335.0,0.3628]
[1735322591110,0.053065,94342.0,94335.0,0.3658]
[1735322591315,0.3608,94348.0,94338.0,0.053066]
[1735322591713,0.001,94348.0,94338.0,0.053066]
[1735322591908,0.001,94348.0,94339.0,0.053066]
[1735322592218,0.05306,94350.0,94339.0,0.053066]
[1735322592407,0.001,94342.0,94339.0,0.053066]
[1735322592809,0.053061,94348.0,94339.0,0.053066]
[1735322593011,0.053061,94348.0,94339.0,0.054066]
[1735322593209,0.053065,94341.0,94339.0,0.001]
[1735322593811,0.0659,94347.0,94339.0,0.001]
[1735322594020,0.053066,94340.0,94339.0,0.001]
[1735322594520,0.053066,94340.0,94339.0,0.004]
[1735322595518,0.053066,94340.0,94339.0,0.001]
[1735322597225,0.053066,94340.0,94339.0,0.004]
[1735322599020,0.053066,94340.0,94339.0,0.003]
[1735322599218,0.053066,94340.0,94339.0,0.004]
[1735322600424,0.01377697,94343.0,94339.0,0.004]
[1735322600726,0.10831456,94350.0,94339.0,0.004]
[1735322600923,0.053062,94346.0,94339.0,0.004]
[1735322601225,0.053064,94344.0,94339.0,0.004]
[1735322602518,0.1221273,94350.0,94339.0,0.004]
[1735322602719,0.01381274,94350.0,94347.0,0.053061]
[1735322603019,0.00159042,94356.0,94347.0,0.053061]
[1735322603709,0.00159042,94356.0,94344.0,0.3608]
[1735322603915,0.053048,94372.0,94355.0,0.3608]
[1735322604208,0.053048,94372.0,94366.0,0.053051]
[1735322604616,0.37467716,94374.0,94371.0,0.053048]
[1735322605416,0.01387716,94374.0,94371.0,0.053048]
[1735322605724,0.009,94372.0,94371.0,0.053048]
[1735322606826,0.009,94372.0,94371.0,0.054048]
[1735322607725,0.005,94374.0,94371.0,0.054048]
[1735322607917,0.014,94374.0,94371.0,0.054048]
[1735322608419,0.009,94372.0,94371.0,0.054048]
[1735322608623,0.014,94372.0,94371.0,0.054048]
[1735322608922,0.005,94372.0,94371.0,0.054048]
[1735322609321,0.009,94374.0,94371.0,0.053048]
[1735322609522,0.014,94374.0,94373.0,0.3608]
[1735322610120,0.009,94374.0,94373.0,0.3608]
[1735322610921,0.01365052,94379.0,94373.0,0.3608]
[1735322611118,0.053042,94382.0,94374.0,0.053046]
[1735322611322,0.053046,94375.0,94373.0,0.3608]
[1735322611715,0.004,94374.0,94373.0,0.413847]
[1735322612236,0.002,94374.0,94373.0,0.413847]
[1735322612823,0.053042,94382.0,94375.0,0.053046]
[1735322614532,0.058042,94382.0,94375.0,0.053046]
[1735322615131,0.060042,94382.0,94375.0,0.053046]
[1735322615632,0.053045,94377.0,94368.0,0.053049]
[1735322615824,0.053046,94376.0,94368.0,0.053049]
[1735322616025,0.007,94382.0,94368.0,0.053049]
[1735322616225,0.053046,94375.0,94368.0,0.053049]
[1735322616627,0.053051,94367.0,94365.0,0.3608]
[1735322616935,0.0636,94366.0,94365.0,0.3608]
[1735322617129,0.0636,94366.0,94355.0,0.3608]
[1735322617346,0.05306,94350.0,94341.0,0.053064]
[1735322617529,0.10831456,94350.0,94340.0,0.3608]
[1735322617730,0.10831456,94360.0,94342.0,0.053064]
[1735322618230,0.10831456,94360.0,94355.0,0.003]
[1735322618433,0.053057,94356.0,94355.0,0.003]
[1735322618628,0.10831456,94360.0,94342.0,0.053064]
[1735322618832,0.053062,94348.0,94342.0,0.053064]
[1735322619232,0.001,94350.0,94340.0,0.3638]
[1735322619432,0.053065,94342.0,94340.0,0.3638]
[1735322619832,0.0612,94341.0,94340.0,0.3638]
[1735322620722,0.0612,94341.0,94340.0,0.3608]
[1735322621537,0.0622,94341.0,94340.0,0.3658]
[1735322622433,0.0612,94341.0,94340.0,0.3628]
[1735322622630,0.0622,94341.0,94340.0,0.3658]
[1735322623732,0.001,94341.0,94340.0,0.3658]
[1735322624334,0.053055,94359.0,94340.0,1.8658]
[1735322624534,0.053056,94357.0,94349.0,0.3608]
[1735322624732,0.053056,94357.0,94351.0,0.053059]
[1735322627833,0.053056,94357.0,94352.0,0.053059]
[1735322628444,0.61549733,94375.0,94352.0,0.3]
[1735322628731,0.053048,94372.0,94369.0,0.413849]
[1735322628931,0.053049,94370.0,94369.0,0.3608]
[1735322629131,0.001,94357.0,94352.0,0.059058]
[1735322629552,0.0633,94356.0,94352.0,0.006]
[1735322629731,0.053058,94354.0,94352.0,0.006]
[1735322630950,0.053058,94354.0,94352.0,0.004]
[1735322631338,0.053058,94354.0,94352.0,0.001]
[1735322631640,0.053057,94355.0,94352.0,0.002]
[1735322631840,0.053058,94353.0,94352.0,0.002]
[1735322632043,0.053058,94353.0,94352.0,0.006]
[1735322632439,0.053058,94353.0,94352.0,0.004]
[1735322632641,0.053058,94353.0,94352.0,0.002]
[1735322632838,0.053058,94353.0,94352.0,0.003]
[1735322633945,0.053058,94353.0,94352.0,0.001]
[1735322634144,0.053058,94353.0,94347.0,0.053062]
[1735322634145,0.057058,94353.0,94347.0,0.053062]
[1735322634542,0.053058,94353.0,94347.0,0.053062]
[1735322635241,0.053058,94353.0,94347.0,0.055062]
[1735322636146,0.053054,94360.0,94352.0,0.3608]
[1735322636350,0.3608,94369.0,94352.0,0.3608]
[1735322636351,0.01309477,94364.0,94357.0,0.053056]
[1735322636548,0.053051,94367.0,94357.0,0.053056]
[1735322636750,0.3608,94369.0,94352.0,0.3608]
[1735322637049,0.413849,94369.0,94359.0,0.053055]
[1735322637246,0.413849,94369.0,94360.0,0.3608]
[1735322637445,0.413849,94369.0,94361.0,0.053054]
[1735322638051,0.413849,94369.0,94362.0,0.053053]
[1735322638242,0.415849,94369.0,94362.0,0.053053]
[1735322638438,0.416849,94369.0,94362.0,0.053053]
[1735322638645,0.054049,94369.0,94362.0,0.053053]
[1735322638848,0.057049,94369.0,94368.0,0.3608]
[1735322639045,0.056049,94369.0,94368.0,0.3608]
[1735322639246,0.055049,94369.0,94368.0,0.3608]
[1735322639449,0.059049,94369.0,94368.0,0.3608]
[1735322641155,0.062049,94369.0,94368.0,0.3608]
[1735322643251,0.009,94369.0,94368.0,0.3608]
[1735322643846,0.009,94369.0,94368.0,0.3911]
[1735322644344,0.009,94369.0,94368.0,0.4221]
[1735322644545,0.01304549,94372.0,94368.0,0.4221]
[1735322644747,0.009,94369.0,94368.0,0.3608]
[1735322645048,0.056049,94369.0,94368.0,0.3608]
[1735322645250,0.062049,94369.0,94368.0,0.3608]
[1735322646942,0.059049,94369.0,94368.0,0.3608]
[1735322647149,0.062049,94369.0,94368.0,0.3608]
[1735322648675,0.053058,94354.0,94349.0,0.4154499]
[1735322648866,0.053058,94354.0,94349.0,0.7762499]
[1735322649268,0.10831456,94359.0,94351.0,0.053059]
[1735322649578,0.009,94369.0,94358.0,0.3608]
[1735322649879,0.053051,94367.0,94361.0,0.053053]
[1735322650977,0.053053,94363.0,94360.0,0.3608]
[1735322652277,0.004,94367.0,94361.0,0.053054]
[1735322652973,0.001,94367.0,94361.0,0.053054]
[1735322653177,0.002,94363.0,94361.0,0.053054]
[1735322653575,0.001,94363.0,94361.0,0.053054]
[1735322654371,0.003,94363.0,94361.0,0.053054]
[1735322654570,0.004,94363.0,94361.0,0.053054]
[1735322654770,0.053043,94381.0,94375.0,0.053045]
[1735322654981,0.053043,94381.0,94376.0,0.053045]
[1735322655378,0.05304,94386.0,94377.0,0.053044]
[1735322655680,0.00092,94400.0,94386.0,0.053039]
[1735322655886,0.00092,94400.0,94390.0,0.413837]
[1735322656177,0.11688628,94407.0,94406.0,0.053028]
[1735322656575,0.053031,94402.0,94400.0,0.3608]
[1735322657979,0.058031,94402.0,94400.0,0.3618]
[1735322658381,0.060031,94402.0,94400.0,0.3618]
[1735322658972,0.060031,94402.0,94400.0,0.001]
[1735322659380,0.060031,94402.0,94396.0,0.053034]
[1735322659569,0.060031,94402.0,94400.0,0.001]
[1735322659973,0.002,94402.0,94401.0,0.413831]
[1735322660170,0.007,94402.0,94401.0,0.413831]
[1735322660375,0.007,94402.0,94401.0,0.713831]
[1735322660580,0.007,94402.0,94401.0,0.413831]
[1735322661084,0.002,94402.0,94401.0,0.413831]
[1735322661281,0.008,94402.0,94401.0,0.414831]
[1735322661470,0.0602,94431.0,94401.0,0.6618]
[1735322661676,0.0301,94431.0,94426.0,0.3608]